fUSD/lending_fUSD_20260414
["ID","MTS","AMOUNT","RATE_DAILY","PERIOD"]
[420489317,1776151794660,-1998.124426,0.00045196,120]
[420489318,1776151794722,-151.0,0.00045196,120]
[420489319,1776151794763,-1998.124426,0.00045196,120]
[420489320,1776151794807,-151.0,0.00045196,120]
[420489321,1776151794843,-1998.124426,0.00045196,120]
[420489322,1776151794877,-151.0,0.00045196,120]
[420489323,1776151794918,-1998.124426,0.00045196,120]
[420489324,1776151795363,-1998.124426,0.00045196,120]
[420489325,1776151795399,-151.0,0.00045196,120]
[420489326,1776151795437,-1998.124426,0.00045196,120]
[420489327,1776151795481,-151.0,0.00045196,120]
[420489328,1776151795531,-1998.124426,0.00045196,120]
[420489329,1776151795577,-151.0,0.00045196,120]
[420489330,1776151795618,-1998.124426,0.00045196,120]
[420489331,1776151795666,-151.0,0.00045196,120]
[420489332,1776151795718,-151.0,0.00045196,120]
[420489333,1776151795764,-1998.124426,0.00045196,120]
[420489334,1776151795811,-151.0,0.00045196,120]
[420489335,1776151795867,-1998.124426,0.00045196,120]
[420489336,1776151795915,-151.0,0.00045196,120]
[420489337,1776151795983,-1998.124426,0.00045196,120]
[420489338,1776151796029,-301.534306,0.00045196,120]
[420489339,1776151796073,-163.1783,0.00045196,120]
[420489340,1776151796118,-1998.124426,0.00045196,120]
[420489341,1776151796156,-1998.124426,0.00045196,120]
[420489342,1776151796191,-1998.124426,0.00045196,120]
[420489343,1776151796226,-1998.124426,0.00045196,120]
[420489344,1776151796260,-1998.124426,0.00045196,120]
[420489345,1776151796292,-1998.124426,0.00045196,120]
[420489346,1776151796324,-1998.124426,0.00045196,120]
[420489347,1776151796358,-1998.124425,0.00045196,120]
[420489348,1776151796390,-162.66017,0.00045196,120]
[420489349,1776151796429,-162.66017,0.00045196,120]
[420489350,1776151796463,-535.7341317,0.00045196,120]
[420489351,1776151796522,-162.66017,0.00045196,120]
[420489352,1776151796556,-162.66017,0.00045196,120]
[420489353,1776151796597,-162.66017,0.00045196,120]
[420489354,1776151796635,-162.66017,0.00045196,120]
[420489355,1776151796665,-162.66017,0.00045196,120]
[420489356,1776151796697,-162.66017,0.00045196,120]
[420489357,1776151796738,-162.66017,0.00045196,120]
[420489358,1776151796775,-500.0,0.00045196,120]
[420489359,1776151796806,-162.66017,0.00045196,120]
[420489360,1776151796844,-162.66017,0.00045196,120]
[420489361,1776151796886,-500.0,0.00045196,120]
[420489362,1776151796924,-278.34096,0.00045196,120]
[420489363,1776151796966,-162.66017,0.00045196,120]
[420489364,1776151797034,-500.0,0.00045196,120]
[420489365,1776151797116,-278.34096,0.00045196,120]
[420489366,1776151797190,-162.66017,0.00045196,120]
[420489367,1776151797234,-500.0,0.00045196,120]
[420489368,1776151797304,-278.34096,0.00045196,120]
[420489369,1776151797419,-162.66017,0.00045196,120]
[420489370,1776151797486,-500.0,0.00045196,120]
[420489371,1776151797557,-278.34096,0.00045196,120]
[420489372,1776151797606,-162.66017,0.00045196,120]
[420489373,1776151797666,-500.0,0.00045196,120]
[420489374,1776151797711,-278.34096,0.00045196,120]
[420489375,1776151797747,-162.66017,0.00045196,120]
[420489376,1776151797789,-278.34096,0.00045196,120]
[420489377,1776151797822,-500.0,0.00045196,120]
[420489378,1776151797858,-162.66017,0.00045196,120]
[420489379,1776151797897,-278.34096,0.00045196,120]
[420489380,1776151797952,-500.0,0.00045196,120]
[420489381,1776151797993,-162.66017,0.00045196,120]
[420489382,1776151798066,-162.66017,0.00045196,120]
[420489383,1776151798123,-500.0,0.00045196,120]
[420489384,1776151798163,-278.34096,0.00045196,120]
[420489385,1776151798221,-162.660174,0.00045196,120]
[420489386,1776151798264,-278.34096,0.00045196,120]
[420489387,1776151798308,-500.0,0.00045196,120]
[420489388,1776151798360,-278.34096,0.00045196,120]
[420489389,1776151798404,-500.0,0.00045196,120]
[420489390,1776151798436,-278.34096,0.00045196,120]
[420489391,1776151798469,-500.0,0.00045196,120]
[420489392,1776151798503,-278.34096,0.00045196,120]
[420489393,1776151798535,-500.0,0.00045196,120]
[420489394,1776151798570,-278.34096,0.00045196,120]
[420489395,1776151798607,-500.0,0.00045196,120]
[420489396,1776151798641,-278.34096,0.00045196,120]
[420489397,1776151798675,-558.792682,0.00045196,120]
[420489398,1776151798708,-278.34096,0.00045196,120]
[420489399,1776151798739,-278.34096,0.00045196,120]
[420489400,1776151798770,-278.34096,0.00045196,120]
[420489401,1776151798807,-278.34096,0.00045196,120]
[420489402,1776151798842,-278.34096,0.00045196,120]
[420489403,1776151798886,-278.34096026,0.00045196,120]
[420489404,1776151798921,-151.0,0.00045196,120]
[420489405,1776151798973,-151.0,0.00045196,120]
[420489406,1776151799020,-151.0,0.00045196,120]
[420489407,1776151799081,-151.0,0.00045196,120]
[420489408,1776151799146,-151.0,0.00045196,120]
[420489409,1776151799185,-184.887377,0.00045196,120]
[420489410,1776151801663,700.45040542,0.00045196,120]
[420489411,1776151803612,192.0,0.00045196,120]
[420489412,1776151803671,500.0,0.00045196,120]
[420489413,1776151804173,151.0,0.00045196,120]
[420489416,1776151808980,1923.7933,8.457e-05,2]
[420489417,1776151812447,-1704.6719,8.557e-05,2]
[420489418,1776151815330,271.0,8.457e-05,2]
[420489419,1776151822639,2596.9867,8.219e-05,2]
[420489420,1776151822709,2379.6033,8.219e-05,2]
[420489421,1776151823627,300.0,8.556e-05,2]
[420489422,1776151831837,2320.4067,8.457e-05,2]
[420489423,1776151831869,5000.01,8.457e-05,2]
[420489424,1776151831902,5000.01,8.457e-05,2]
[420489425,1776151831952,5000.01,8.457e-05,2]
[420489426,1776151831995,5000.01,8.457e-05,2]
[420489427,1776151832067,5000.01,8.457e-05,2]
[420489428,1776151832115,5000.01,8.457e-05,2]
[420489429,1776151832169,699507.6905,8.457e-05,2]
[420489430,1776151833339,-150.0,8.557e-05,2]
[420489559,1776151849333,-250.0,8.557e-05,2]
[420489560,1776151849354,-1284.8479,8.557e-05,2]
[420489561,1776151849364,-765.0235,8.557e-05,2]
[420489562,1776151849382,-366.32280919,8.557e-05,2]
[420489563,1776151849394,-500.0,8.601e-05,2]
[420489564,1776151849404,-500.0,8.601e-05,2]
[420489565,1776151849415,-246.8771455,8.601e-05,2]
[420489566,1776151849437,-80937.98,8.602e-05,2]
[420489567,1776151849447,-150.0,8.602e-05,2]
[420489568,1776151849459,-150.0,8.602e-05,2]
[420489569,1776151849481,-2713.95,8.617e-05,2]
[420489570,1776151849492,-616.4,8.617e-05,2]
[420489571,1776151849506,-4309.22,8.644e-05,2]
[420489572,1776151849520,-157.55,8.648e-05,2]
[420489573,1776151849532,-280769.82864534,8.755e-05,2]
[420489574,1776151849802,-80814.56376476,8.755e-05,2]
[420489575,1776151849831,-1062.71,8.76e-05,2]
[420489576,1776151849845,-500.0,8.783e-05,2]
[420489577,1776151849888,-235.75327194,8.783e-05,2]
[420489578,1776151849903,-244.476143,8.783e-05,2]
[420489579,1776151849948,-253.52176029,8.783e-05,2]
[420489580,1776151849977,-262.90206542,8.783e-05,2]
[420489581,1776151850011,-272.62944185,8.783e-05,2]
[420489582,1776151850039,-282.71673119,8.783e-05,2]
[420489583,1776151850056,-244.99885779,8.783e-05,2]
[420489584,1776151850084,-151.0,8.783e-05,2]
[420489585,1776151850097,-693.3919763,8.783e-05,2]
[420489586,1776151850112,-279.9045709,8.783e-05,2]
[420489587,1776151850140,-209.40437684,8.783e-05,2]
[420489588,1776151850151,-500.0,8.784e-05,2]
[420489589,1776151850182,-500.0,8.838e-05,2]
[420489590,1776151850194,-151.0,8.838e-05,2]
[420489591,1776151850209,-211.2,8.843e-05,2]
[420489592,1776151850230,-208.23,8.876e-05,2]
[420489593,1776151850241,-500.0,8.893e-05,2]
[420489594,1776151850267,-151.0,8.893e-05,2]
[420489595,1776151850277,-500.0,8.948e-05,2]
[420489596,1776151850290,-151.0,8.948e-05,2]
[420489597,1776151850318,-642.4239,8.985e-05,2]
[420489598,1776151850332,-150.99,8.985e-05,2]
[420489599,1776151850351,-299.99,8.985e-05,2]
[420489600,1776151850363,-9999.99,8.985e-05,2]
[420489601,1776151850378,-999.99,8.985e-05,2]
[420489602,1776151850400,-24999.99,8.985e-05,2]
[420489603,1776151850410,-6233.98,8.985e-05,2]
[420489604,1776151850436,-382.5117,8.985e-05,2]
[420489605,1776151850447,-500.0,9.003e-05,2]
[420489606,1776151850469,-151.0,9.003e-05,2]
[420489607,1776151850489,-200.0,9.033e-05,2]
[420489608,1776151850506,-1600.0,9.036e-05,2]
[420489609,1776151850526,-500.0,9.058e-05,2]
[420489610,1776151850541,-500.0,9.058e-05,2]
[420489611,1776151850552,-151.0,9.058e-05,2]
[420489612,1776151850577,-1839.49,9.068e-05,2]
[420489613,1776151850600,-500.0,9.113e-05,2]
[420489614,1776151850616,-151.0,9.113e-05,2]
[420489615,1776151850629,-500.0,9.168e-05,2]
[420489616,1776151850648,-151.0,9.168e-05,2]
[420489617,1776151850658,-150.0,9.2e-05,2]
[420489618,1776151850674,-500.0,9.223e-05,2]
[420489619,1776151850694,-151.0,9.223e-05,2]
[420489620,1776151850719,-500.0,9.278e-05,2]
[420489621,1776151850746,-151.0,9.278e-05,2]
[420489622,1776151850784,-279.9045709,9.331e-05,2]
[420489623,1776151850803,-217.15233878,9.331e-05,2]
[420489624,1776151850819,-422.75456204,9.332e-05,2]
[420489625,1776151850835,-500.0,9.333e-05,2]
[420489626,1776151850859,-151.0,9.333e-05,2]
[420489627,1776151850886,-208.23,9.343e-05,2]
[420489628,1776151851405,-420.0,9.411e-05,2]
[420489629,1776151851445,-250.0,9.412e-05,2]
[420489630,1776151851455,-250.0,9.412e-05,2]
[420489631,1776151851475,-150.0,9.452e-05,2]
[420489632,1776151851489,-500.0,9.452e-05,2]
[420489633,1776151851499,-500.0,9.452e-05,2]
[420489634,1776151851509,-500.0,9.452e-05,2]
[420489635,1776151851518,-524.77207293,9.452e-05,2]
[420489636,1776151851529,-150.8353399,9.452e-05,2]
[420489637,1776151851538,-150.0,9.452e-05,2]
[420489638,1776151851548,-150.0,9.452e-05,2]
[420489639,1776151851558,-150.0,9.452e-05,2]
[420489640,1776151851569,-150.0,9.452e-05,2]
[420489641,1776151851579,-202.21951758,9.452e-05,2]
[420489642,1776151851588,-200.0,9.452e-05,2]
[420489643,1776151851598,-150.0,9.452e-05,2]
[420489644,1776151851610,-150.0,9.452e-05,2]
[420489645,1776151851622,-203.63316162,9.452e-05,2]
[420489646,1776151851631,-731.21,9.452e-05,2]
[420489647,1776151851641,-150.0,9.452e-05,2]
[420489648,1776151851665,-150.0,9.452e-05,2]
[420489649,1776151851675,-500.0,9.452e-05,2]
[420489650,1776151851685,-500.0,9.452e-05,2]
[420489651,1776151851700,-170.72887189,9.452e-05,2]
[420489652,1776151851713,-150.0,9.452e-05,2]
[420489653,1776151851722,-500.0,9.452e-05,2]
[420489654,1776151851740,-500.0,9.452e-05,2]
[420489655,1776151851751,-154.2228643,9.452e-05,2]
[420489656,1776151851761,-150.0,9.452e-05,2]
[420489657,1776151851771,-500.0,9.452e-05,2]
[420489658,1776151851795,-500.0,9.452e-05,2]
[420489659,1776151851805,-500.0,9.452e-05,2]
[420489660,1776151851814,-591.57268297,9.452e-05,2]
[420489661,1776151851831,-150.0,9.452e-05,2]
[420489662,1776151851841,-500.0,9.452e-05,2]
[420489663,1776151851852,-395.67262696,9.452e-05,2]
[420489664,1776151851862,-150.0,9.452e-05,2]
[420489665,1776151851875,-3527.0,9.595e-05,2]
[420489666,1776151851885,-1348.0,9.595e-05,2]
[420489667,1776151851895,-150.0,9.631e-05,2]
[420489668,1776151851906,-262.97,9.696e-05,2]
[420489669,1776151851922,-150.0,9.726e-05,2]
[420489670,1776151851931,-731.21,9.726e-05,2]
[420489671,1776151851941,-160.11577509,9.772e-05,2]
[420489672,1776151851955,-167.81704065,9.772e-05,2]
[420489673,1776151851965,-208.23,9.81e-05,2]
[420489674,1776151851975,-500.0,9.836e-05,2]
[420489675,1776151851985,-150.0,9.836e-05,2]
[420489676,1776151852000,-150.0,9.836e-05,2]
[420489677,1776151852010,-200.97890991,9.836e-05,2]
[420489678,1776151852020,-150.70409199,9.836e-05,2]
[420489679,1776151852036,-214.1413,9.84e-05,2]
[420489680,1776151852046,-225.18697532,9.879e-05,2]
[420489681,1776151852063,-1300.0,9.9e-05,3]
[420489682,1776151852072,-200.0,9.9e-05,3]
[420489683,1776151852083,-922.7166817,9.999e-05,2]
[420489684,1776151852101,-265.57674326,0.0001,2]
[420489685,1776151852114,-265.57674326,0.0001,2]
[420489686,1776151852125,-265.57674326,0.0001,2]
[420489687,1776151852139,-179.83473629,0.0001,2]
[420489688,1776151852169,-731.21,0.0001,2]
[420489689,1776151852190,-223.09211407,0.0001,2]
[420489690,1776151852210,-151.0,0.0001,2]
[420489691,1776151852231,-151.0,0.0001,2]
[420489692,1776151852249,-151.0,0.0001,2]
[420489693,1776151852266,-151.0,0.0001,2]
[420489694,1776151852277,-151.0,0.0001,2]
[420489695,1776151852295,-151.0,0.0001,2]
[420489696,1776151852320,-151.0,0.0001,2]
[420489697,1776151852332,-151.0,0.0001,2]
[420489698,1776151852353,-151.0,0.0001,2]
[420489699,1776151852365,-151.0,0.0001,2]
[420489700,1776151852377,-151.0,0.0001,2]
[420489701,1776151852393,-151.0,0.0001,2]
[420489702,1776151852405,-2600.0,0.0001,3]
[420489703,1776151852419,-500.0,0.0001,3]
[420489704,1776151852445,-151.0,0.0001,2]
[420489705,1776151852455,-3262.851,0.00010017,2]
[420489706,1776151852471,-231.003,0.00010017,2]
[420489707,1776151852500,-545.0,0.00010098,5]
[420489708,1776151852510,-194037.86926562,0.00010098,2]
[420489709,1776151852534,-1600.0,0.00010166,2]
[420489710,1776151852548,-151.0,0.00010186,2]
[420489711,1776151852564,-150.0,0.00010187,2]
[420489712,1776151852583,-150.0,0.00010187,2]
[420489713,1776151852594,-150.0,0.00010187,2]
[420489714,1776151852609,-248.0,0.00010245,2]
[420489715,1776151852629,-150.44,0.00010245,2]
[420489716,1776151852640,-250.0,0.00010245,2]
[420489717,1776151852654,-250.0,0.00010245,2]
[420489718,1776151852676,-163.699,0.00010245,2]
[420489719,1776151852687,-156.347,0.00010245,2]
[420489720,1776151852699,-193.775,0.00010245,2]
[420489721,1776151852722,-166.306,0.00010245,2]
[420489722,1776151852741,-215.171,0.00010245,2]
[420489723,1776151852751,-250.0,0.00010245,2]
[420489724,1776151852764,-181.0,0.00010245,2]
[420489725,1776151852782,-240.828,0.00010245,2]
[420489726,1776151852793,-430.81403728,0.00010251,2]
[420489727,1776151852807,-150.0,0.00010265,2]
[420489728,1776151852819,-1264.0,0.00010265,2]
[420489729,1776151852831,-1234.438,0.00010265,2]
[420489730,1776151852848,-939.724,0.00010265,2]
[420489731,1776151852867,-731.21,0.00010274,2]
[420489732,1776151852878,-437.0,0.00010275,5]
[420489733,1776151852891,-208.23,0.00010277,2]
[420489734,1776151852925,-406782.4414614,0.00010337,2]
[420489735,1776151852944,-587.0,0.00010352,2]
[420489736,1776151852964,-500.42337708,0.00010373,2]
[420489737,1776151852978,-500.0,0.00010373,2]
[420489738,1776151852996,-500.0,0.00010373,2]
[420489739,1776151853014,-157.54008316,0.00010373,2]
[420489740,1776151853027,-500.0,0.00010373,2]
[420489741,1776151853051,-167.77624281,0.00010373,2]
[420489742,1776151853076,-500.0,0.00010373,2]
[420489743,1776151853097,-500.0,0.00010373,2]
[420489744,1776151853111,-500.1303098,0.00010373,2]
[420489745,1776151853121,-500.0,0.00010373,2]
[420489746,1776151853134,-500.0,0.00010373,2]
[420489747,1776151853157,-2200.747704,0.00010411,2]
[420489748,1776151853168,-233.51889341,0.00010427,2]
[420489749,1776151853189,-6814.0,0.00010438,2]
[420489750,1776151853201,-10355.868423,0.00010486,2]
[420489751,1776151853212,-408.351179,0.00010486,2]
[420489752,1776151853235,-493.3286354,0.00010507,2]
[420489753,1776151853246,-2000.0,0.00010527,2]
[420489754,1776151853256,-500.0,0.00010548,2]
[420489755,1776151853268,-731.21,0.00010548,2]
[420489756,1776151853282,-190.2484,0.000106,2]
[420489757,1776151853297,-1318.24077785,0.000106,2]
[420489758,1776151853306,-1042.73872331,0.0001064,3]
[420489759,1776151853325,-1228.82502732,0.0001064,3]
[420489760,1776151853339,-171.77892072,0.00010673,2]
[420489761,1776151853349,-551.43343662,0.00010673,2]
[420489762,1776151853394,-500.0,0.00010673,2]
[420489763,1776151853406,-500.0,0.00010673,2]
[420489764,1776151853423,-150.0,0.00010699,2]
[420489765,1776151853440,-114071.03399065,0.000107,2]
[420489766,1776151853450,-371884.15673692,0.000107,2]
[420489767,1776151853461,-208.23,0.00010744,2]
[420489768,1776151853486,-150.0,0.00010751,2]
[420489769,1776151853507,-150.0,0.00010768,2]
[420489770,1776151853518,-150.0,0.00010785,2]
[420489771,1776151853528,-150.0,0.00010802,2]
[420489772,1776151853540,-150.0,0.00010819,2]
[420489773,1776151853551,-731.21,0.00010822,2]
[420489774,1776151853562,-150.0,0.00010836,2]
[420489775,1776151853572,-150.0,0.00010853,2]
[420489776,1776151853584,-922.71668167,0.00010866,2]
[420489777,1776151853597,-150.0,0.0001087,2]
[420489778,1776151853607,-150.0,0.00010887,2]
[420489779,1776151853617,-3900.0,0.000109,3]
[420489780,1776151853631,-700.0,0.000109,3]
[420489781,1776151853640,-9631.39574094,0.000109,2]
[420489782,1776151853651,-9631.3957409,0.000109,2]
[420489783,1776151853665,-9631.3957409,0.000109,2]
[420489784,1776151853676,-150.0,0.00010904,2]
[420489785,1776151853692,-1000.0,0.00010921,2]
[420489786,1776151853702,-1000.0,0.00010921,2]
[420489787,1776151853711,-500.0,0.00010921,2]
[420489788,1776151853721,-1000.0,0.00010921,2]
[420489789,1776151853741,-501.2455248,0.00010921,2]
[420489790,1776151853761,-500.0,0.00010921,2]
[420489791,1776151853770,-150.0,0.00010921,2]
[420489792,1776151853787,-150.0,0.00010938,2]
[420489793,1776151853799,-150.0,0.00010955,2]
[420489794,1776151853820,-200.0,0.00010959,2]
[420489795,1776151853829,-150.0,0.00010959,2]
[420489796,1776151853839,-150.61758947,0.00010959,2]
[420489797,1776151853857,-150.0,0.00010973,2]
[420489798,1776151853873,-242.15909246,0.00010975,2]
[420489799,1776151853883,-503.0,0.00010986,2]
[420489800,1776151853893,-150.0,0.0001099,2]
[420489801,1776151853913,-565.97452496,0.00011,2]
[420489802,1776151853922,-150.0,0.00011007,2]
[420489803,1776151853935,-150.0,0.00011024,2]
[420489804,1776151853952,-150.0,0.00011041,2]
[420489805,1776151853969,-150.0,0.00011058,2]
[420489806,1776151853982,-150.0,0.00011075,2]
[420489807,1776151853994,-150.0,0.00011092,2]
[420489808,1776151854009,-151.0,0.00011096,2]
[420489809,1776151854019,-731.21,0.00011096,2]
[420489810,1776151854036,-2215.97840124,0.00011099,2]
[420489811,1776151854065,-150.0,0.00011109,2]
[420489812,1776151854075,-150.0,0.00011126,2]
[420489813,1776151854089,-150.0,0.00011143,2]
[420489814,1776151854112,-150.0,0.0001116,2]
[420489815,1776151854122,-262.97,0.00011174,2]
[420489816,1776151854141,-250.0,0.00011174,2]
[420489817,1776151854160,-150.0,0.00011177,2]
[420489818,1776151854170,-150.0,0.00011194,2]
[420489819,1776151854180,-208.23,0.00011211,2]
[420489820,1776151854195,-150.0,0.00011211,2]
[420489821,1776151854205,-1092.62181004,0.00011221,2]
[420489822,1776151854215,-525.47467826,0.00011221,2]
[420489823,1776151854224,-150.0,0.00011228,2]
[420489824,1776151854238,-150.0,0.00011246,2]
[420489825,1776151854248,-150.0,0.00011263,2]
[420489826,1776151854259,-151.05574457,0.00011274,2]
[420489827,1776151854269,-150.0,0.0001128,2]
[420489828,1776151854290,-1600.0,0.00011295,2]
[420489829,1776151854303,-150.0,0.00011297,2]
[420489830,1776151854312,-150.0,0.00011314,2]
[420489831,1776151854322,-150.0,0.00011331,2]
[420489832,1776151854342,-150.0,0.00011348,2]
[420489833,1776151854352,-150.0,0.00011365,2]
[420489834,1776151854362,-731.25505446,0.0001137,2]
[420489835,1776151854375,-150.0,0.00011382,2]
[420489836,1776151854388,-823.0,0.00011388,2]
[420489837,1776151854398,-150.0,0.00011399,2]
[420489838,1776151854410,-150.0,0.00011416,2]
[420489839,1776151854425,-150.0,0.00011433,2]
[420489840,1776151854434,-150.0,0.0001145,2]
[420489841,1776151854443,-259.58976828,0.00011455,2]
[420489842,1776151854467,-9631.3957409,0.00011463,2]
[420489843,1776151854476,-150.0,0.00011467,2]
[420489844,1776151854486,-503.27294265,0.00011468,2]
[420489845,1776151854511,-802.10287384,0.00011468,2]
[420489846,1776151854523,-1500.0,0.00011468,2]
[420489847,1776151854539,-150.0,0.00011484,2]
[420489848,1776151854570,-150.0,0.00011502,2]
[420489849,1776151854581,-4803.26,0.00011507,2]
[420489850,1776151854635,-199.60087482,0.00011507,2]
[420489851,1776151854650,-262.97,0.00011511,2]
[420489852,1776151854712,-150.0,0.00011512,2]
[420489853,1776151854740,-150.0,0.00011519,2]
[420489854,1776151854750,-2094.33,0.00011521,2]
[420489855,1776151854771,-251.11897888,0.00011523,2]
[420489856,1776151854781,-150.0,0.00011536,2]
[420489857,1776151854791,-283.58976671,0.00011543,2]
[420489858,1776151854811,-150.0,0.00011552,2]
[420489859,1776151854820,-150.0,0.00011553,2]
[420489860,1776151854830,-21555.40794874,0.00011567,2]
[420489861,1776151854848,-150.0,0.0001157,2]
[420489862,1776151854863,-605.13257122,0.00011576,2]
[420489863,1776151854883,-218.98953518,0.00011576,2]
[420489864,1776151854895,-2000.0,0.0001158,2]
[420489865,1776151854905,-150.0,0.00011587,2]
[420489866,1776151854919,-374.18273337,0.00011588,2]
[420489867,1776151854937,-321.70150922,0.00011588,2]
[420489868,1776151854947,-374.45959741,0.000116,4]
[420489869,1776151854958,-187.22979871,0.000116,4]
[420489870,1776151854971,-150.0,0.00011604,2]
[420489871,1776151854983,-500.0,0.00011616,2]
[420489872,1776151854999,-150.0,0.00011621,2]
[420489873,1776151855011,-341.28396875,0.00011637,2]
[420489874,1776151855023,-150.0,0.00011638,2]
[420489875,1776151855056,-150.0,0.00011655,2]
[420489876,1776151855071,-160.0,0.00011663,2]
[420489877,1776151855083,-150.0,0.00011672,2]
[420489878,1776151855101,-208.23,0.00011679,2]
[420489879,1776151855113,-150.0,0.00011689,2]
[420489880,1776151855123,-1552.68003304,0.0001169,2]
[420489881,1776151855146,-150.0,0.00011706,2]
[420489882,1776151855160,-150.20632008,0.00011712,2]
[420489883,1776151855169,-150.0,0.00011712,2]
[420489884,1776151855213,-150.0,0.00011712,2]
[420489885,1776151855223,-150.0,0.00011712,2]
[420489886,1776151855246,-150.0,0.00011712,2]
[420489887,1776151855255,-150.0,0.00011712,2]
[420489888,1776151855268,-150.0,0.00011712,2]
[420489889,1776151855283,-150.0,0.00011712,2]
[420489890,1776151855293,-150.0,0.00011712,2]
[420489891,1776151855302,-150.0,0.00011712,2]
[420489892,1776151855321,-150.0,0.00011712,2]
[420489893,1776151855330,-150.0,0.00011712,2]
[420489894,1776151855340,-150.0,0.00011712,2]
[420489895,1776151855354,-150.0,0.00011723,2]
[420489896,1776151855368,-150.0,0.00011727,2]
[420489897,1776151855389,-150.0,0.00011732,2]
[420489898,1776151855399,-150.0,0.00011732,2]
[420489899,1776151855421,-922.71668167,0.00011733,2]
[420489900,1776151855431,-150.0,0.00011737,2]
[420489901,1776151855446,-150.0,0.00011737,2]
[420489902,1776151855459,-150.0,0.0001174,2]
[420489903,1776151855468,-150.0,0.00011743,2]
[420489904,1776151855478,-150.0,0.00011751,2]
[420489905,1776151855492,-138345.6993737,0.00011752,2]
[420489906,1776151856559,-125277.21288692,0.00011752,2]
[420489907,1776151856572,-42176.58217137,0.00011752,2]
[420489908,1776151856597,-1517.13268707,0.00011752,2]
[420489909,1776151861468,-2215.97840121,0.00011099,2]
[420489910,1776151861491,-144663.86339354,0.00011752,2]
[420489911,1776151861504,-150.0,0.00011752,2]
[420489912,1776151861519,-150.0,0.00011757,2]
[420489913,1776151861579,-150.0,0.00011758,2]
[420489914,1776151861621,-150.0,0.00011761,2]
[420489915,1776151861639,-150.0,0.00011762,2]
[420489916,1776151861666,-150.0,0.00011764,2]
[420489917,1776151861682,-150.0,0.00011764,2]
[420489918,1776151861720,-163.12604328,0.00011767,2]
[420489919,1776151861737,-150.0,0.00011771,2]
[420489920,1776151861775,-188.34652109,0.00011771,2]
[420489921,1776151861786,-150.0,0.00011772,2]
[420489922,1776151861815,-150.0,0.00011773,2]
[420489923,1776151861828,-150.0,0.00011775,2]
[420489924,1776151861839,-358.39652504,0.00011775,2]
[420489925,1776151861863,-233.4530951,0.00011775,2]
[420489926,1776151861877,-335.76862598,0.00011777,2]
[420489927,1776151861893,-150.0,0.00011786,2]
[420489928,1776151861921,-150.0,0.00011787,2]
[420489929,1776151861959,-150.0,0.00011788,2]
[420489930,1776151861970,-150.0,0.0001179,2]
[420489931,1776151861988,-150.0,0.00011792,2]
[420489932,1776151862010,-150.0,0.00011792,2]
[420489933,1776151862025,-150.0,0.00011794,2]
[420489934,1776151862047,-150.0,0.00011803,2]
[420489935,1776151862075,-150.0,0.00011809,2]
[420489936,1776151862086,-150.0,0.00011809,2]
[420489937,1776151862097,-150.0,0.00011811,2]
[420489938,1776151862118,-150.0,0.00011812,2]
[420489939,1776151862130,-150.0,0.00011812,2]
[420489940,1776151862145,-150.0,0.00011816,2]
[420489941,1776151862162,-150.0,0.00011816,2]
[420489942,1776151862175,-150.0,0.00011818,2]
[420489943,1776151862188,-261.30967032,0.00011825,2]
[420489944,1776151862198,-150.0,0.00011826,2]
[420489945,1776151862210,-150.0,0.00011829,2]
[420489946,1776151862220,-150.0,0.00011832,2]